Cogmind - Beta 14 @@@ ROGUE MODE // 2025.01.14 @ 13:39:47 Player: Derk Result: Destroyed by as-77609 with Assembled F-torch Performance ------------- Evolutions (0) 0 Regions Visited (2) 400 Robots Destroyed (12) 60 Value Destroyed (256) 256 Prototype IDs (0) 0 Alien Tech Used (0) 0 Bonus (0) 0 TOTAL SCORE: 716 Bonus ------- None Cogmind --------- Core Integrity 0/250 Matter 256/300 Energy 100/100 System Corruption 3% Temperature Cool (23) Movement Treading (240) Ox1 Location -10/Mines Parts ------- > --- POWER (1) -------- (None) > --- PROPULSION (2) --- Light Treads Wheel > --- UTILITY (2) ------ Large Storage Unit Light Armor Plating > --- WEAPON (2) ------- Light Assault Rifle Mining Laser > --- INVENTORY (15) --- Aluminum Leg Aluminum Leg Wheel Compact Wheel Huge Storage Unit High-capacity Matter Pod (69) Improved Terrain Scanner Peak State ------------ > --- POWER ------------ Ion Engine > --- PROPULSION ------- Light Treads Light Treads > --- UTILITY ---------- Small Storage Unit Seismic Detector > --- WEAPON ----------- Small Laser Light Assault Rifle > --- INVENTORY -------- Light Ion Engine Aluminum Leg Aluminum Leg Wheel Compact Wheel Improved Terrain Scanner Small Laser Mining Laser [Rating: 8] Favorites ----------- Power Ion Engine Engine Ion Engine Propulsion Light Treads Treads Light Treads Wheel Wheel Utility Seismic Detector Device Seismic Detector Storage Large Storage Unit Protection Light Armor Plating Weapon Light Assault Rifle Energy Gun Small Laser Ballistic Gun Light Assault Rifle Special Weapon Mining Laser Build | -11 -10 -10 ------- Run | Yrd Mat Min Slots Evolved . | . . . Power . | . . . Propulsion . | . . . Utility . | . . . Weapon . | . . . Parts Attached 21 | 7 9 5 Power 2 | 1 1 . Engine 2 | 1 1 . Core . | . . . Reactor . | . . . Propulsion 4 | 2 . 2 Treads 3 | 2 . 1 Leg . | . . . Wheel 1 | . . 1 Hover . | . . . Flight . | . . . Utility 7 | 2 4 1 Device 2 | 1 1 . Storage 3 | 1 2 . Processor . | . . . Hackware . | . . . Protection 2 | . 1 1 Artifact . | . . . Weapon 8 | 2 4 2 Energy Gun 1 | 1 . . Energy Cannon . | . . . Ballistic Gun 5 | 1 3 1 Ballistic Cannon . | . . . Launcher . | . . . Special Weapon 2 | . 1 1 Impact Weapon . | . . . Slashing Weapon . | . . . Piercing Weapon . | . . . Special Melee Weapon . | . . . Unidentified Prototypes . | . . . Parts Lost 8 | . 2 6 Power 2 | . 1 1 Propulsion 2 | . . 2 Utility 1 | . . 1 Weapon 3 | . 1 2 Highest Loss Streak 6 | . 2 6 To Critical Strikes . | . . . Average Slot Usage (%) 98 | . 99 80 Engine 13 | . 13 14 Treads 27 | . 28 14 Device 12 | . 12 9 Storage 14 | . 14 14 Protection 1 | . 1 4 Energy Gun 3 | . 4 . Ballistic Gun 21 | . 21 18 Special Weapon 2 | . 2 . Peak Build Rating 8 | 8 8 8 Average Rating 7 | 5 7 6 On Entrance 5 | . 8 8 Naked Turns . | . . . Heaviest Build 29 | 13 28 29 Greatest Support 40 | 40 40 40 Greatest Overweight (x) 2 | . . 2 Average Overweight (x) . | . . . Largest Inventory Capacity 15 | 8 15 15 Average Capacity 12 | 7 13 15 Most Carried 12 | 8 12 11 Average Carried 9 | 4 10 9 Final Capacity 15 | 8 15 15 Final Carried 12 | 8 12 7 Class Distribution -------------------- 94% | Mutant 5% | Scavenger-Mutant Dominant Class ---------------- Mutant | -10/Materials Mutant | -10/Mines Resources | -11 -10 -10 ----------- Run | Yrd Mat Min Matter Collected 504 | 278 226 . Remotely . | . . . Salvage Created 412 | 102 280 30 Parts 19 | 5 14 . Haulers Intercepted . | . . . Recyclers Shooed . | . . . Parts Field Recycled . | . . . Retrieved Matter . | . . . Parts Self-Destructed . | . . . Prevented . | . . . Kills | -11 -10 -10 ------- Run | Yrd Mat Min Combat Hostiles Destroyed 10 | . 8 2 Guns 10 | . 8 2 Classes Destroyed 7 | 3 3 1 Worker 1 | 1 . . Tunneler 1 | 1 . . Recycler 1 | 1 . . Watcher 1 | . 1 . Swarmer 3 | . 3 . Grunt 5 | . 5 . Assembled 2 | . . 2 Best Kill Streak 3 | 2 3 2 Combat Bots Only 3 | . 3 2 Max Kills in Single Turn 1 | 1 1 1 Gunslinging . | . . . Exploded . | . . . Melee . | . . . Uniques/NPCs Destroyed . | . . . Combat | -11 -10 -10 -------- Run | Yrd Mat Min Hostile Shots Fired 116 | . 80 36 Missed 34 | . 21 13 Damage Taken 1141 | . 674 467 Core 250 | . 149 101 Absorbed by Shields . | . . . Core Remaining (%) 100 | 100 . . Volleys Fired 76 | 15 57 4 Largest 2 | 2 2 1 Hottest 120 | 60 120 20 Shots Fired 139 | 30 105 4 Gun 134 | 30 100 4 Cannon . | . . . Launcher . | . . . Special 5 | . 5 . Kinetic 109 | 15 90 4 Thermal 30 | 15 15 . Explosive . | . . . Electromagnetic . | . . . Robot Hit Streak 12 | 11 12 11 Robot Miss Streak 4 | 2 4 2 Penetration Max . | . . . Secondary Targets 3 | . 3 . Max Gunslinging Chain 1 | . 1 . Shots Hit Robots 85 | 19 64 2 Core Hits 29 | 5 22 2 Critical Kills . | . . . Critical Parts Destroyed 1 | 1 . . Critical Strikes 1 | 1 . . Destroy 1 | 1 . . Melee Attacks . | . . . Impact . | . . . Slashing . | . . . Piercing . | . . . Sneak Attacks . | . . . Combat Hostiles . | . . . Follow-up Attacks . | . . . Damage Inflicted 727 | 190 519 18 Guns 727 | 190 519 18 Cannons . | . . . Explosions . | . . . Melee . | . . . Ramming . | . . . Kinetic 569 | 80 471 18 Thermal 158 | 110 48 . Explosive . | . . . Electromagnetic . | . . . Impact . | . . . Slashing . | . . . Piercing . | . . . Highest Corruption 3 | . . 3 Average Corruption 3 | . . 3 Corruption Purged . | . . . Corruption Blocked . | . . . Overload Shots . | . . . Overflow Damage . | . . . Projectiles . | . . . Explosions . | . . . Melee . | . . . Knockbacks . | . . . Impact . | . . . Kinetic . | . . . Secondary . | . . . Self-Inflicted Damage . | . . . Shots . | . . . Rammed . | . . . Targets Rammed . | . . . Kicked . | . . . Crushed . | . . . Highest Temperature 132 | 40 132 6 Average Temperature 27 | 18 32 3 Received Heat Transfer 408 | . 312 96 Siege Activations . | . . . Robots Corrupted . | . . . Combat Hostiles . | . . . Parts Fried . | . . . Impact Corruptions . | . . . Robots Melted . | . . . Combat Hostiles . | . . . Parts Melted . | . . . Heat Transferred 350 | 250 100 . Parts Sabotaged . | . . . Parts Stolen . | . . . Parts Stripped . | . . . Power Chain Reactions . | . . . Alert | -11 -10 -10 ------- Run | Yrd Mat Min Peak Influence 144 | 15 144 60 Initial 55 | . 9 55 Average 39 | 7 45 35 Maximum Alert Level . | . . . Low Security (%) 100 | 100 100 100 Level 1 . | . . . Level 2 . | . . . Level 3 . | . . . Level 4 . | . . . Level 5 . | . . . High Security . | . . . Max Security . | . . . Squads Dispatched 1 | . 1 . Investigation . | . . . Extermination . | . . . Reinforcement 1 | . 1 . Assault . | . . . Garrison . | . . . Intercept . | . . . Searches Triggered . | . . . Construction Impeded . | . . . Haulers Reinforced . | . . . Active Scanning Responses . | . . . Cargo Convoy Interrupts . | . . . Stealth | -11 -10 -10 --------- Run | Yrd Mat Min Distress Signals 1 | . 1 . Communications Jammed . | . . . Distress Signals . | . . . Times Spotted 34 | . 22 12 Peak Tracking Total 21 | . 4 21 Tactical Retreats 5 | . 4 1 Traps | -11 -10 -10 ------- Run | Yrd Mat Min Traps Triggered . | . . . Indirectly . | . . . Trap Hack Attempts . | . . . Triggered . | . . . Disarmed . | . . . Reprogrammed . | . . . Reused . | . . . Traps Extracted . | . . . Installed . | . . . Triggered . | . . . Machines | -11 -10 -10 ---------- Run | Yrd Mat Min Machines Disabled . | . . . Max in Single Turn . | . . . Machines Repaired . | . . . Machines Dismantled . | . . . Machines Sabotaged . | . . . Overloaded Fab Kills . | . . . Hacking | -11 -10 -10 --------- Run | Yrd Mat Min Machines Accessed 6 | . 6 . Terminals 6 | . 6 . Fabricators . | . . . Repair Stations . | . . . Recycling Units . | . . . Scanalyzers . | . . . Garrison Access . | . . . Total Hacks 25 | . 25 . Successful 17 | . 17 . Failed 8 | . 8 . Catastrophic . | . . . Database Lockouts . | . . . Manual 17 | . 17 . Terminals 25 | . 25 . Fabricators . | . . . Repair Stations . | . . . Recycling Units . | . . . Scanalyzers . | . . . Garrison Access . | . . . Terminal Hacks 7 | . 7 . Robot Analysis 2 | . 2 . Terminal Index 1 | . 1 . Locate Traps 2 | . 2 . Zone Layout 2 | . 2 . Fabricator Hacks . | . . . Repair Station Hacks . | . . . Recycling Unit Hacks . | . . . Scanalyzer . | . . . Garrison Access Hacks . | . . . Unauthorized Hacks 10 | . 10 . Terminals 10 | . 10 . Track 3 | . 3 . Botnet 2 | . 2 . Skim 5 | . 5 . Fabricators . | . . . Repair Stations . | . . . Recycling Units . | . . . Scanalyzers . | . . . Garrison Access . | . . . Data Cores Recovered . | . . . Used . | . . . Hacking Detections 6 | . 6 . Full Trace Events . | . . . Feedback Events . | . . . Feedback Blocked . | . . . Robot Schematics Acquired . | . . . Robots Built . | . . . Authchips . | . . . Time . | . . . Total Robot Build Rating . | . . . Part Schematics Acquired . | . . . Parts Built . | . . . Authchips . | . . . Time . | . . . Total Part Build Rating . | . . . Parts Repaired . | . . . Time . | . . . Parts Recycled . | . . . Recycled Matter . | . . . Retrieved Matter . | . . . Retrieved Components . | . . . Parts Scanalyzed . | . . . Part Schematics Acquired . | . . . Parts Damaged . | . . . Bothacking | -11 -10 -10 ------------ Run | Yrd Mat Min Used RIF Installer . | . . . Robots Hacked . | . . . Non-combat . | . . . Combat . | . . . Robot Hacks Applied . | . . . Relay Couplers Released . | . . . Fabnet Peak Effective % . | . . . Robots Rewired . | . . . Allies Hacked . | . . . Hacks Repelled . | . . . Allies | -11 -10 -10 -------- Run | Yrd Mat Min Total Allies . | . . . Largest Group . | . . . Highest-Rated Group . | . . . Highest-Rated Ally . | . . . Total Orders . | . . . Ally Attacks . | . . . Total Damage . | . . . Kills . | . . . Allies Corrupted . | . . . Allies Melted . | . . . Intel | -11 -10 -10 ------- Run | Yrd Mat Min Robot Analysis Total 2 | . 2 . Derelict Logs Recovered . | . . . Drone Launches . | . . . Drone Recoveries . | . . . Exploration | -11 -10 -10 ------------- Run | Yrd Mat Min Turns Passed 1428 | 206 1191 31 Spaces Moved 687 | 94 581 12 Core 3 | 3 . . Treads 680 | 91 581 8 Legs . | . . . Wheels 4 | . . 4 Hover . | . . . Flight . | . . . Fastest Speed 50 | 50 160 110 Average Speed 159 | 156 160 150 Slowest Speed 240 | 160 160 240 Overloaded Moves . | . . . Propulsion Burnouts . | . . . Robots Hopped . | . . . Cave-ins Triggered . | . . . Exploration Rate (%) 33 | 6 88 7 Regions Visited 2 Branch Regions 1 Pre-discovered Areas 1 | . 1 . Known Exits Taken 1 | . 1 . Unknown Exits Taken 1 | 1 . . Scrap Searched . | . . . Spaces Dug 5 | . 5 . Terrain Destroyed 5 | . 5 . Melee . | . . . Projectile 5 | . 5 . AOE . | . . . Terrain Rammed . | . . . Walls Destroyed . | . . . Machines Disabled . | . . . Actions | -11 -10 -10 --------- Run | Yrd Mat Min Total 891 | 123 746 22 Wait 86 | . 86 . Move 685 | 93 580 12 Hop . | . . . Pick Up 16 | 8 8 . Fast Attach 10 | 7 2 1 Attach 5 | . 1 4 Detach . | . . . Swap 6 | . 6 . Drop 7 | . 6 1 Fire 76 | 15 57 4 Melee . | . . . Ram . | . . . Kick . | . . . Crush . | . . . Escape Stasis . | . . . Rewire . | . . . Trap . | . . . Miscellaneous . | . . . Route ------- -11/Scrapyard -10/Materials (discovered 5 exits: *Mat x3 / *Min / Sub) -10/Mines History --------- Turn | Location | Event 11 | -11/Scrapyard | Discovered new exit (range 16) 207 | -11/Scrapyard | Entered Materials 313 | -10/Materials | Build established: Mutant 576 | -10/Materials | Discovered new exit (range 13) 1040 | -10/Materials | Identified exit to Materials 1040 | -10/Materials | Identified exit to Subcaves 1040 | -10/Materials | Identified exit to Mines 1083 | -10/Materials | Learned 4 Recycling zone layouts 1115 | -10/Materials | Learned 2 Mines zone layouts 1139 | -10/Materials | Learned Storage security intel 1150 | -10/Materials | Discovered exit to Materials (range 9) 1153 | -10/Materials | Learned location of 1 exit from Storage 1159 | -10/Materials | Learned location of Storage (-7) 1176 | -10/Materials | Loaded intel: 28 non-interactive machine locations 1204 | -10/Materials | Learned location of 1 exit from Recycling 1274 | -10/Materials | Core integrity fell below 50% 1398 | -10/Materials | Entered Mines 1399 | -10/Mines | Assembled infested the area 1418 | -10/Mines | Core integrity fell below 20% 1429 | -10/Mines | Destroyed by as-77609 with Assembled F-torch Last Messages --------------- 01394_ Acquired Mining Laser. LOCATION=MINES GOAL=ESCAPE 01398_ Dropped Mining Laser. 01399_ ALERT: Infestation in the mines, dispatching Demolisher response squad. Loading 2 Mines zones... 01407_ Lgt. Assault Rifle destroyed. 01409_ Lgt. Treads destroyed. 01411_ Seismic Detector destroyed. 01411_ System corrupted by crushing effect (+3). 01412_ Lgt. Assault Rifle destroyed. 01413_ Lgt. Treads destroyed. 01418_ Acquired Lgt. Assault Rifle. 01419_ as-59059 destroyed. 01419_ Y-45 Defender destroyed. 01421_ as-59415 destroyed. 01423_ Y-45 Defender destroyed. 01423_ as-73516 destroyed. 01429_ Ion Engine destroyed. Map ----- +----------------------------------------------------+ | ?????????????????????????????????????????????????? | | ?????????????????????????????????????????????????? | | ?????????????????????????????????????????????????? | | ?????????????????????????????????????????????????? | | ?????????????????????????????????????????????????? | | ?????????????????????????????????????????????????? | | ?????????????????????????????????????????????????? | | ?????????????????????????????????????????????????? | | ?????????????????????????????????????????????????? | | ?????????????????????????????????????????????????? | | ?????????????????????????????????????????????????? | | ?????????????????????????????????????????????????? | | ?????????????????????????????????? ?????????????? | | ?????????????????????????????????? ????????????? | | ??????????????????????? #??????## ##??# ######?? | | ??????????????????????? ##??????## ##### ######?? | | ??????????????????????? ##??????# ?? | | ??????????????????????? ###????# ############?? | | ??????????????????????? ##???# #????????????? | | ??????????????????????? #???# ############?? | | ??????????????????????? ##???# ?? | | ??????????????????????? ###????# ########### ?? | | ???????????????????????####????### ##????????# ?? | | ?????????????????????????????### #????????##?? | | ???????????????????????####### ##????????#?? | | ??????????????????????##!@## #??????????? | | ??????????????????????#"a # #??????????? | | ??????????????????????#%=%aa | ##??????????? | | ??????????????????????#%% a #???????????? | | ??????????????????????#"[! # #?????????#?? | | ??????????????????????##|!## #?????????#?? | | ???????????????????????####### #?????????#?? | | ?????????????????????????????#### ##???????????? | | ????????????????????????????????#####????????????? | | ?????????????????????????????????????????????????? | | ?????????????????????????????????????????????????? | | ?????????????????????????????????????????????????? | | ?????????????????????????????????????????????????? | | ?????????????????????????????????????????????????? | | | | | | | | | | | | | | | | | | | | | | | +----------------------------------------------------+ Best States ------------- Heat Dissipation 25 Energy Generation 10 Energy Capacity 250 Matter Stores 300 Matter Capacity 300 Sight Range 16 Terrain Scan Density 10 Armor Coverage 150 Evasion (%) 40 Recoil Reduction 2 Item Schematics ----------------- None Robot Schematics ------------------ None Fabricated ------------ Nothing Alien Tech Used ----------------- None Achievements -------------- None Challenges ------------ None Game ------ Seed AlertSalvagingMediator Manual? 0 Play Time 00:14:38 Cumulative 411.3 hours Start 2025.01.14 @ 13:25:52 End 2025.01.14 @ 13:39:47 Sessions 1 Manual Loads 0 Difficulty Rogue Special Mode None Game No. 174 Rogue 174 Adventurer 0 Explorer 0 Win Type - Total 15 Types 13/0/1/1/0/0/0/0/0 Lore% 74 Gallery% 80 Achievement% 68 Wizard Run 0 Options --------- Layout 0 ASCII 0 Keyboard 0 Movement Numpad Keybinds 0 Fullscreen 1 Font 24/X11 Map View 76x50 Zoom Use 0% Tactical HUD 1 Map Filters NONE Filters NONE Steam 1 RUN: d5fc2bda-3323-454b-9baf-326dbcdc7d5d